Workbook

Sheet ADA DPAC JAN 2021 CAA
A1: DEPARTMENT OF TRANSPORTATION - CALTRANS
A2: DBE Commitment at Award (CAA) on Federally Funded Major Construction Contracts - October 1, 2020 - January 31, 2020
A4: Total Award Amount | C4: Total DBE Commitment Amount | F4: Total Prime Contracts Awarded
A5: 98366420 | C5: =SUM(B7:B19) -> 17833545.51 | F5: =SUM(B107:B114,I107:I114,E107:E114) -> 20
A6: Groups | B6: Commitment Dollars | C6: Firms | D6: Contracts | E6: % of Contracts | F6: % of DBE $ | G6: % of Total $
A7: Hispanic American Male | B7: =SUMIF(C27:C43,"m", B27:B43) -> 3310891.5 | C7: =COUNTIF(C27:C43,"M") -> 11 | D7: =SUMIF(C27:C43,"M",D27:D43) -> 13 | E7: =D7/D20 -> 0.2 | F7: =B7/C5 -> 0.1856552584 | G7: =B7/A5 -> 0.03365875773
A8: Hispanic American Female | B8: =SUMIF(C27:C43,"F", B27:B43) -> 242000 | C8: =COUNTIF(C27:C43,"F") -> 3 | D8: =SUMIF(C27:C43,"F",D27:D43) -> 3 | E8: =D8/D20 -> 0.04615384615 | F8: =B8/C5 -> 0.01356993201 | G8: =B8/A5 -> 0.002460189158
A9: African American Male | B9: =SUMIF(C50:C55,"m", B50:B55) -> 360000 | C9: =COUNTIF(C50:C55,"M") -> 3 | D9: =SUMIF(C50:C55,"M",D50:D55) -> 5 | E9: =D9/D20 -> 0.07692307692 | F9: =B9/C5 -> 0.02018667571 | G9: =B9/A5 -> 0.003659785524
A10: African American Female | B10: =SUMIF(C50:C55,"F", B50:B55) -> 370000 | C10: =COUNTIF(C50:C55,"F") -> 2 | D10: =SUMIF(C50:C55,"F",D50:D55) -> 2 | E10: =D10/D20 -> 0.03076923077 | F10: =B10/C5 -> 0.0207474167 | G10: =B10/A5 -> 0.003761446233
A11: Asian Pacific Male | B11: =SUMIF(C69:C82,"m", B69:B82) -> 5134178.01 | C11: =COUNTIF(C69:C82,"M") -> 11 | D11: =SUMIF(C69:C82,"M",D69:D82) -> 19 | E11: =D11/D20 -> 0.2923076923 | F11: =B11/C5 -> 0.287894407 | G11: =B11/A5 -> 0.05219441767
A12: Asian Pacific Female | B12: =SUMIF(C69:C82,"F", B69:B82) -> 690960 | C12: =COUNTIF(C69:C82,"F") -> 2 | D12: =SUMIF(C69:C82,"F",D69:D82) -> 2 | E12: =D12/D20 -> 0.03076923077 | F12: =B12/C5 -> 0.03874495958 | G12: =B12/A5 -> 0.00702434835
A13: Subcontinent Asian Male | B13: =SUMIF(C58:C66,"m", B58:B66) -> 4366085.7 | C13: =COUNTIF(C60:C66,"M") -> 6 | D13: =SUMIF(C60:C66,"M",D60:D66) -> 6 | E13: =D13/D20 -> 0.09230769231 | F13: =B13/C5 -> 0.2448243227 | G13: =B13/A5 -> 0.04438593679
A14: Subcontinent Asian Female | B14: =SUMIF(C58:C66,"F", B58:B66) -> 0 | C14: =COUNTIF(C60:C66,"F") -> 0 | D14: =SUMIF(C60:C66,"F",D60:D66) -> 0 | E14: =D14/D20 -> 0 | F14: =B14/C5 -> 0 | G14: =B14/A5 -> 0
A15: Native American Male | B15: =SUMIF(C46:C47,"m", B46:B47) -> 0 | C15: =COUNTIF(C46:C47,"M") -> 0 | D15: =SUMIF(C46:C47,"M",D46:D47) -> 0 | E15: =D15/D20 -> 0 | F15: =B15/C5 -> 0 | G15: =B15/A5 -> 0
A16: Native American Female | B16: =SUMIF(C46:C47,"F", B46:B47) -> 0 | C16: =COUNTIF(C46:C47,"F") -> 0 | D16: =SUMIF(C46:C47,"F",D46:D47) -> 0 | E16: =D16/D20 -> 0 | F16: =B16/C5 -> 0 | G16: =B16/A5 -> 0
A17: Non Minority Women | B17: =SUMIF(C89:C102,"F", B89:B102) -> 3359430.3 | C17: =COUNTIF(C89:C102,"F") -> 13 | D17: =SUMIF(C89:C102,"F",D89:D102) -> 15 | E17: =D17/D20 -> 0.2307692308 | F17: =B17/C5 -> 0.1883770279 | G17: =B17/A5 -> 0.03415220662
A18: Non Minority Men | B18: =SUMIF(C85:C86,"F", B85:B86) -> 0 | C18: =COUNTIF(C85:C86,"F") -> 0 | D18: =SUMIF(C85:C86,"F",D85:D86) -> 0 | E18: =D18/D20 -> 0 | F18: =B18/C5 -> 0 | G18: =B18/A5 -> 0
A20: Total | C20: =SUM(C7:C19) -> 51 | D20: =SUM(D7:D19) -> 65
A21: Total Prime Contracts Awarded | B21: =SUM(B107:B114,E107:E114,I107:I114) -> 20
A22: Red Italic = DBE firm as Prime
A23: BOLD = women
A26: Hispanic American | B26: Dollars | C26: M/F | D26: Contract | E26: Contract # | F26: Prime | G26: Prime Name | H26: Districts
A27: ACT CONSULTING ENGINEERS | B27: ='[1]Commitment-DPAC-Minor B Alpha'!G6 -> 1540315.5 | C27: M | D27: 2 | E27: =FETCHCOMMENT(D27) -> 12A1857 12A1863 | F27: 1 | G27: =FETCHCOMMENT(F27) -> TRANSYSTEMS CORPORATION | H27: 12
A28: ALTA LAND SURVEYING INC | B28: ='[1]Commitment-DPAC-Minor B Alpha'!G13 -> 6000 | C28: M | D28: 1 | E28: =FETCHCOMMENT(D28) -> 11A3117 | F28: 1 | G28: =FETCHCOMMENT(F28) -> KIMLEY-HORN & ASSOCIATES INC | H28: 11
A29: ARAGON GEOTECHNICAL | B29: ='[1]Commitment-DPAC-Minor B Alpha'!G18 -> 460000 | C29: M | D29: 1 | E29: 08A3187 | F29: 1 | G29: ALTA VISTA SOLUTIONS | H29: 8
A30: CADRE DESIGN | B30: ='[1]Commitment-DPAC-Minor B Alpha'!G24 -> 80000 | C30: M | D30: 1 | E30: 59A1107 | F30: 1 | G30: KLEINFELDER INC | H30: 59
A31: CALIFORNIA TESTING & | B31: ='[1]Commitment-DPAC-Minor B Alpha'!C7 -> 92000 | C31: F | D31: 1 | E31: 08A3187 | F31: 1 | G31: ALTA VISTA SOLUTIONS | H31: 8
A32: DYNAMIC CONSULTING | B32: ='[1]Commitment-DPAC-Minor B Alpha'!G31 -> 50000 | C32: M | D32: 1 | E32: 11A3122 | F32: 1 | G32: JACOBS ENGINEERING GROUP | H32: 11
A33: EARTHVIEW SCIENCE | B33: ='[1]Commitment-DPAC-Minor B Alpha'!C13 -> 100000 | C33: F | D33: 1 | E33: 04A6021 | F33: 1 | G33: JACOBS ENGINEERING GROUP | H33: 4
A34: ESTRADA LAND PLANNING | B34: ='[1]Commitment-DPAC-Minor B Alpha'!C22 -> 50000 | C34: F | D34: 1 | E34: 11A3122 | F34: 1 | G34: JACOBS ENGINEERING GROUP | H34: 11
A35: LA SALLE SOLUTIONS | B35: ='[1]Commitment-DPAC-Minor B Alpha'!G37 -> 126576 | C35: M | D35: 1 | E35: 12A1860 | F35: 1 | G35: TRC ENGINEERS INC | H35: 12
A36: LOPEZ ENGINEERING | B36: ='[1]Commitment-DPAC-Minor B Alpha'!G48 -> 450000 | C36: M | D36: 1 | E36: 11A3122 | F36: 1 | G36: JACOBS ENGINEERING GROUP | H36: 11
A37: MONTEZ GROUP INC | B37: ='[1]Commitment-DPAC-Minor B Alpha'!G54 -> 60000 | C37: M | D37: 1 | E37: 04A6043 | F37: 1 | G37: ARCADIS U.S. INC | H37: 4
A38: NOMAD ECOLOGY INC | B38: ='[1]Commitment-DPAC-Minor B Alpha'!G61 -> 100000 | C38: M | D38: 1 | E38: 04A6021 | F38: 1 | G38: JACOBS ENGINEERING GROUP | H38: 4
A39: RUZ CONSULTING ENGINEERING | B39: ='[1]Commitment-DPAC-Minor B Alpha'!G68 -> 120000 | C39: M | D39: 1 | E39: 07A4986 | F39: 1 | G39: ARCADIS U.S. INC | H39: 7
A40: UNDER CONSTRUCTION | B40: ='[1]Commitment-DPAC-Minor B Alpha'!G76 -> 318000 | C40: M | D40: 2 | E40: 11A3117 03A3120 | F40: 2 | G40: KIMLEY-HORN & ASSOCIATES INC TRC ENGINEERS INC | H40: 3,11
A45: Native American | B45: Dollars | C45: M/F | D45: Contract | E45: Contract # | F45: Prime | G45: Prime Name | H45: Districts
A49: African American | B49: Dollars | C49: M/F | D49: Contract | E49: Contract # | F49: Prime | G49: Prime Name | H49: Districts
A50: BIOMAAS | B50: ='[1]Commitment-DPAC-Minor B Alpha'!AE6 -> 200000 | C50: M | D50: 1 | E50: 04A6021 | F50: 1 | G50: JACOBS ENGINEERING GROUP INC | H50: 4
A51: DAVID ENGINEERING LLC | B51: ='[1]Commitment-DPAC-Minor B Alpha'!AE12 -> 50000 | C51: M | D51: 1 | E51: 11A3122 | F51: 1 | G51: JACOBS ENGINEERING GROUP INC | H51: 11
A52: ELLE CONSULTANTS | B52: ='[1]Commitment-DPAC-Minor B Alpha'!AA6 -> 250000 | C52: F | D52: 1 | E52: 04A6036 | F52: 1 | G52: ELLE CONSULTANTS | H52: 4
A53: O2EPCM INC | B53: ='[1]Commitment-DPAC-Minor B Alpha'!AA16 -> 120000 | C53: F | D53: 1 | E53: 07A4986 | F53: 1 | G53: ARCADIS U.S. INC | H53: 7
A54: TRIUNITY ENGINEERING | B54: ='[1]Commitment-DPAC-Minor B Alpha'!AE23 -> 110000 | C54: M | D54: 3 | E54: 03A3117 53A0252 04A6043 | F54: 2 | G54: KREBS CORPORATION ARCADIS U.S. INC | H54: 3,4,53
A57: Sub Cont Asian | B57: Dollars | C57: M/F | D57: Contract | E57: Contract # | F57: Prime | G57: Prime Name | H57: Districts
A58: AMC INC | B58: ='[1]Commitment-DPAC-Minor B Alpha'!AM9 -> 880960 | C58: M | D58: 3 | E58: 07A4986 08A3183 12A1860 | F58: 3 | G58: ARCADIS U.S. INC WSP USA INC TRC ENGINEERS INC | H58: 7,8,12
A59: CHAUDHARY & ASSOCIATES INC | B59: ='[1]Commitment-DPAC-Minor B Alpha'!AM17 -> 1940827.4 | C59: M | D59: 2 | E59: 06A2613 59A1107 | F59: 2 | G59: CHAUDHARY & ASSOCIATES INC KLEINFELDER INC | H59: 6,59
A60: EARTH MECHANICS | B60: ='[1]Commitment-DPAC-Minor B Alpha'!AM25 -> 12000 | C60: M | D60: 1 | E60: 11A3117 | F60: 1 | G60: KIMLEY-HORN ^ ASSOICATES INC | H60: 11
A61: IQON ENGINEERS INC | B61: ='[1]Commitment-DPAC-Minor B Alpha'!AM31 -> 503100 | C61: M | D61: 1 | E61: 08A3229 | F61: 1 | G61: PARSONS TRANSPORTATION GROUP INC | H61: 8
A62: KAL KRISHNAN CONSULTING | B62: ='[1]Commitment-DPAC-Minor B Alpha'!AM38 -> 180000 | C62: M | D62: 1 | E62: 07A4986 | F62: 1 | G62: ARCADIS U.S. INC | H62: 7
A63: T J K M | B63: ='[1]Commitment-DPAC-Minor B Alpha'!AM45 -> 210960 | C63: M | D63: 1 | E63: 12A1860 | F63: 1 | G63: TRC ENGINEERS INC | H63: 12
A64: TORRENT LABORATORY INC | B64: ='[1]Commitment-DPAC-Minor B Alpha'!AM53 -> 558238.3 | C64: M | D64: 1 | E64: 06A2647 | F64: 1 | G64: MICHAEL BAKER INTERNATIONAL INC | H64: 6
B65: ='[1]Commitment-DPAC-Minor B Alpha'!AM63 -> 80000 | C65: M | D65: 1 | E65: 59A1107 | F65: 1 | G65: KLEINFELDER INC | H65: 59
A68: Asian Pacific | B68: Dollars | C68: M/F | D68: Contract | E68: Contract # | F68: Prime | G68: Prime Name | H68: Districts
A69: 1ST CHOICE DBE INC | B69: ='[1]Commitment-DPAC-Minor B Alpha'!O6 -> 84000 | C69: M | D69: 1 | E69: 03A3117 | F69: 1 | G69: 03A3117 | H69: 3
A70: A P ENGINEERING AND | B70: ='[1]Commitment-DPAC-Minor B Alpha'!O13 -> 80000 | C70: M | D70: 1 | E70: 59A1107 | F70: 1 | G70: KLEINFELDER INC | H70: 59
A71: ADVANTEC CONSULTING ENGINEERS | B71: ='[1]Commitment-DPAC-Minor B Alpha'!O23 -> 1151663.1 | C71: M | D71: 3 | E71: 11A3117 11A3122 12A1857 | F71: 3 | G71: KIMLEY-HORN ^ ASSOICATES INC JACOBS ENGINEERING GROUP INC TRANSYSTEMS CORPORATION | H71: 11,12
A72: C2PM | B72: ='[1]Commitment-DPAC-Minor B Alpha'!K8 -> 210960 | C72: F | D72: 1 | E72: 12A1860 | F72: 1 | G72: TRC ENGINEERS INC | H72: 12
A73: CL SURVEYING AND MAPPING | B73: ='[1]Commitment-DPAC-Minor B Alpha'!O28 -> 558387.2 | C73: M | D73: 1 | E73: 08A3230 | F73: 1 | G73: GUIDA SURVEYING INC | H73: 8
A74: LIN CONSULTING | B74: ='[1]Commitment-DPAC-Minor B Alpha'!O40 -> 1021323.1 | C74: M | D74: 4 | E74: 12A1857 12A1861 12A1863 08A3229 | F74: 3 | G74: TRANSYSTEMS CORPORATION AECOM TECHNICAL SERVICES INC PARSONS TRANSPORTATION GROUP INC | H74: 8,12
A75: LRS PROGRAM DELIVERY | B75: ='[1]Commitment-DPAC-Minor B Alpha'!K15 -> 480000 | C75: F | D75: 1 | E75: 03A3120 | F75: 1 | G75: TRC ENGINEERS | H75: 3
A76: PRESCIENCE CORPORATION | B76: ='[1]Commitment-DPAC-Minor B Alpha'!O47 -> 700000 | C76: M | D76: 1 | E76: 08A3183 | F76: 1 | G76: WSP USA INC | H76: 8
A77: SILICON TRANSPORTATION | B77: ='[1]Commitment-DPAC-Minor B Alpha'!O52 -> 120000 | C77: M | D77: 1 | E77: 11A3117 | F77: 1 | G77: KIMLEY-HORN ^ ASSOICATES INC | H77: 11
A78: TATSUMI AND PARTNERS | B78: ='[1]Commitment-DPAC-Minor B Alpha'!O59 -> 484534.65 | C78: M | D78: 3 | E78: 12A1857 12A1861 12Z1863 | F78: 2 | G78: TRANSYSTEMS CORPORATION AECOM TECHNICAL SERVICES INC | H78: 12
A79: TRANSMAT | B79: ='[1]Commitment-DPAC-Minor B Alpha'!O67 -> 84384 | C79: M | D79: 1 | E79: 12A1860 | F79: 1 | G79: TRC ENGINEERS INC | H79: 12
A80: TRICERTUS LLC | B80: ='[1]Commitment-DPAC-Minor B Alpha'!O73 -> 80000 | C80: M | D80: 1 | E80: 04A6043 | F80: 1 | G80: ARCADIS U.S. INC | H80: 4
A81: WRECO | B81: ='[1]Commitment-DPAC-Minor B Alpha'!O88 -> 769885.96 | C81: M | D81: 2 | E81: 04A6021 06A2647 | F81: 2 | G81: JACOBS ENGINEERING GROUP MICHAEL BAKER INTERNATIONAL INC | H81: 4,6
A84: Other | B84: Dollars | C84: M/F | D84: Contract | E84: Contract # | F84: Prime | G84: Prime Name | H84: Districts
A88: Non Minority Women | B88: Dollars | C88: M/F | D88: Contract | E88: Contract # | F88: Prime | G88: Prime Name | H88: Districts
A89: ALERT-O-LITE INC | B89: ='[1]Commitment-DPAC-Minor B Alpha'!AQ6 -> 80000 | C89: F | D89: 1 | E89: 59A1107 | F89: 1 | G89: KLEINFELDER INC | H89: 59
A90: APPLIED TECHNOLOGY | B90: ='[1]Commitment-DPAC-Minor B Alpha'!AQ16 -> 400000 | C90: F | D90: 1 | E90: 04A6021 | F90: 1 | G90: JACOBS ENGINEERING GROUP | H90: 4
A91: AREA WEST ENVURONMENTAL | B91: ='[1]Commitment-DPAC-Minor B Alpha'!AQ24 -> 200000 | C91: F | D91: 1 | E91: =FETCHCOMMENT(D91) -> 04A6021 | F91: 1 | G91: =FETCHCOMMENT(F91) -> JACOBS ENGINEERING GROUP | H91: 4
A92: AVILA TRAFFIC SAFETY | B92: ='[1]Commitment-DPAC-Minor B Alpha'!AQ32 -> 400000 | C92: F | D92: 1 | E92: 59A1107 | F92: 1 | G92: KLEINFELDER INC | H92: 59
A93: BLUE LAKE CIVIL | B93: ='[1]Commitment-DPAC-Minor B Alpha'!AQ40 -> 327000 | C93: F | D93: 3 | E93: 11A3117 03A3117 53A0252 | F93: 2 | G93: KIMLEY-HORN ^ ASSOICATES INC KREBS CORPORATION | H93: 11,53
A94: CIVIL WORKS ENGINEERS | B94: ='[1]Commitment-DPAC-Minor B Alpha'!AQ46 -> 558238.3 | C94: F | D94: 1 | E94: 06A2647 | F94: 1 | G94: MICHAEL BAKER INTERNATIONAL INC | H94: 6
A95: DILLAR ENVIRONMENTAL SERVICES | B95: ='[1]Commitment-DPAC-Minor B Alpha'!AQ53 -> 400000 | C95: F | D95: 1 | E95: 59A1107 | F95: 1 | G95: KLEINFELDER INC | H95: 59
A96: GATEWAY PACIFIC | B96: ='[1]Commitment-DPAC-Minor B Alpha'!AQ60 -> 120000 | C96: F | D96: 1 | E96: 11A3117 | F96: 1 | G96: KIMLEY-HORN ^ ASSOICATES INC | H96: 11
A97: MYRIAD ENGINEERING | B97: ='[1]Commitment-DPAC-Minor B Alpha'!AQ66 -> 120000 | C97: F | D97: 1 | E97: 03A3120 | F97: 1 | G97: TRC ENGINEERS INC | H97: 3
A98: NORTHGATE ENVIRONMENTAL | B98: ='[1]Commitment-DPAC-Minor B Alpha'!AQ72 -> 100000 | C98: F | D98: 1 | E98: 04A6021 | F98: 1 | G98: JACOBS ENGINEERING GROUP | H98: 4
A99: P R R INC | B99: ='[1]Commitment-DPAC-Minor B Alpha'!AQ83 -> 12000 | C99: F | D99: 1 | E99: 11A3117 | F99: 1 | G99: KIMLEY-HORN ^ ASSOICATES INC | H99: 11
A100: PAVEMENT MANAGEMENT | B100: ='[1]Commitment-DPAC-Minor B Alpha'!AQ78 -> 42192 | C100: F | D100: 1 | E100: 12A1860 | F100: 1 | G100: TRC ENGINEERS INC | H100: 12
A101: SWAIM BIOLOGICAL CONSULTING | B101: ='[1]Commitment-DPAC-Minor B Alpha'!AQ90 -> 600000 | C101: F | D101: 1 | E101: 04A6021 | F101: 1 | G101: JACOBS ENGINEERING GROUP | H101: 4
A106: Prime Name | B106: # of Contracts | C106: Contract # | D106: Prime Name | E106: # of Contracts | F106: Contract # | G106: Prime Name | H106: # of Contracts | I106: Contract #
A107: AECOM TECHNICAL SERVICES INC | B107: 1 | C107: =FETCHCOMMENT(B107) -> 12A1861 | D107: KLEINFELDER INC | E107: 1 | F107: 59A1107
A108: ARCADIS U.S. INC | B108: 2 | C108: =FETCHCOMMENT(B108) -> 07A4986 04A6043 | D108: KREBS CORPORATION | E108: 2 | F108: 03A3117 53A0252
A109: ALTA VISTA SOLUTIONS | B109: 1 | C109: 08A3187 | D109: MICHAEL BAKER INTERNATIONAL INC | E109: 1 | F109: 06A2647
A110: CHAUDHARY & ASSOCIATES INC | B110: 1 | C110: 06A2613 | D110: PARSONS TRANSPORTATION GROUP INC | E110: 1 | F110: 08A3229
A111: ELLE CONSULTANTS | B111: 1 | C111: 04A6036 | D111: TRANSYSTEMS CORPORATION | E111: 2 | F111: 12A1857 12A1863
A112: GUIDA SURVEYING INC | B112: 1 | C112: 08A3230 | D112: TRC ENGINEERS INC | E112: 2 | F112: 12A1860 03A3120
A113: JACOBS ENGINEERING GROUP INC | B113: 2 | C113: 11A3122 04A6021 | D113: WSP USA INC | E113: 1 | F113: 08A3183
A114: KIMLEY-HORN & ASSOCIATES INC | B114: 1 | C114: 11A3117
A116: To see names of prime contractors/contract numbers, place your cursor on comment tab (red triangle).
A117: Caltrans DBE Reports: http://www.dot.ca.gov/hq/bep/reports.htm
